[Event "MČR 2022 blesk"]
[Site "Turnov, Czech Republic"]
[Date "2022.09.10"]
[Round "15.1"]
[White "Kunc, Jan"]
[Black "Vykouk, Jan"]
[Result "0-1"]
[TimeControl "2x 3 min + 2s/move"]
[WhiteElo "1948"]
[BlackElo "2352"]

1. e4 {[%clk 00:03:03]} c5 {[%clk 00:03:03]} 2. Nf3 {[%clk 00:03:03]} d6 {[%clk
00:03:04]} {[%emt 00:00:04]} 3. d4 {[%clk 00:03:04]} cxd4 {[%clk 00:03:04]}
{[%emt 00:00:10]} 4. Nxd4 {[%clk 00:03:04]} Nf6 {[%clk 00:03:05]} 5. Nc3 {[%clk
00:03:04]} a6 {[%clk 00:03:04]} {[%emt 00:00:04]} 6. Bg5 {[%clk 00:03:04]} Nbd7
{[%clk 00:03:03]} 7. Bc4 {[%clk 00:03:00]} {[%emt 00:01:36]} e6 {[%clk
00:02:54]} 8. Bb3 {[%clk 00:02:45]} Nc5 {[%clk 00:02:51]} 9. Qe2 {[%clk
00:02:26]} Be7 {[%clk 00:02:46]} 10. h4 {[%clk 00:02:11]} O-O {[%clk 00:02:44]}
11. O-O-O {[%clk 00:02:01]} {[%emt 00:00:05]} Nxb3+ {[%clk 00:02:44]} 12. axb3
{[%clk 00:01:59]} {[%emt 00:00:58]} Qc7 {[%clk 00:02:33]} 13. g4 {[%clk
00:01:36]} b5 {[%clk 00:02:33]} 14. f3 {[%clk 00:01:28]} {[%emt 00:00:27]} b4
{[%clk 00:02:28]} 15. Na4 {[%clk 00:01:11]} Bd7 {[%clk 00:02:29]} 16. Kb1
{[%clk 00:01:00]} {[%emt 00:00:14]} Rfc8 {[%clk 00:02:25]} 17. h5 {[%clk
00:00:35]} {[%emt 00:00:24]} Qa5 {[%clk 00:02:17]} {[%emt 00:00:23]} 18. Bc1
{[%clk 00:00:18]} {[%emt 00:00:11]} Bxa4 {[%clk 00:02:13]} {[%emt 00:00:05]} 19.
bxa4 {[%clk 00:00:17]} {[%emt 00:00:04]} Qxa4 {[%clk 00:01:52]} {[%emt
00:00:19]} 20. b3 {[%clk 00:00:17]} {[%emt 00:00:09]} Qa5 {[%clk 00:01:41]}
{[%emt 00:00:06]} 21. g5 {[%clk 00:00:16]} {[%emt 00:00:12]} Nd7 {[%clk
00:01:41]} 22. g6 {[%clk 00:00:15]} Bf6 {[%clk 00:01:40]} 23. gxf7+ {[%clk
00:00:13]} {[%emt 00:00:05]} Kxf7 {[%clk 00:01:41]} 24. f4 {[%clk 00:00:09]}
{[%emt 00:00:13]} Rc3 {[%clk 00:01:03]} {[%emt 00:00:31]} 25. Qg4 {[%clk
00:00:07]} {[%emt 00:00:07]} Nc5 {[%clk 00:00:26]} {[%emt 00:00:35]} 26. Rhe1
{[%clk 00:00:04]} {[%emt 00:00:06]} Rc8 {[%clk 00:00:21]} {[%emt 00:00:13]} 27.
e5 {[%clk 00:00:05]} dxe5 {[%clk 00:00:20]} 28. fxe5 {[%clk 00:00:06]} Be7
{[%clk 00:00:18]} {[%emt 00:00:04]} 29. Rf1+ {[%clk 00:00:07]} Kg8 {[%clk
00:00:17]} {[%emt 00:00:04]} 30. Rg1 {[%clk 00:00:06]} {[%emt 00:00:04]} Bf8
{[%clk 00:00:17]} {[%emt 00:00:05]} 31. Nxe6 {[%clk 00:00:07]} Nxb3 {[%clk
00:00:07]} {[%emt 00:00:12]} 32. cxb3 {[%clk 00:00:06]} Rxb3+ {[%clk 00:00:04]}
{[%emt 00:00:10]} 33. Bb2 {[%clk 00:00:06]} Rxb2+ {[%clk 00:00:05]} 34. Kxb2
{[%clk 00:00:06]} {[%emt 00:00:04]} Qa3+ {[%clk 00:00:06]} 35. Kb1 {[%clk
00:00:03]} {[%emt 00:00:05]} Qb3+ {[%clk 00:00:06]} 36. Ka1 {[%clk 00:00:03]}
Qc3+ {[%clk 00:00:06]} {[%emt 00:00:05]} 37. Kb1 {[%clk 00:00:03]} {[%emt
00:00:05]} Qc2+ {[%clk 00:00:06]} 38. Ka1 {[%clk 00:00:03]} Qa4+ {[%clk
00:00:06]} 39. Kb1 {[%clk 00:00:04]} {[%emt 00:00:05]} Qb3+ {[%clk 00:00:06]}
40. Ka1 {[%clk 00:00:05]} Rc2 {[%clk 00:00:06]} {[%emt 00:00:05]} 41. Rg2
{[%clk 00:00:03]} Qa2# {[%emt 00:00:18]} 0-1

[Event "MČR 2022 blesk"]
[Site "Turnov, Czech Republic"]
[Date "2022.09.10"]
[Round "15.2"]
[White "Kraus, Tomas"]
[Black "Lacina, Filip"]
[Result "1-0"]
[TimeControl "2x 3 min + 2s/move"]
[WhiteElo "2389"]
[BlackElo "2024"]

1. c4 {[%clk 00:03:03]} e6 {[%clk 00:03:01]} {[%emt 00:00:27]} 2. Nc3 {[%clk
00:03:04]} d5 {[%clk 00:03:03]} 3. d4 {[%clk 00:03:05]} c5 {[%clk 00:03:03]} 4.
e3 {[%clk 00:03:02]} Nf6 {[%clk 00:03:02]} {[%emt 00:00:05]} 5. Nf3 {[%clk
00:03:03]} Nc6 {[%clk 00:03:03]} 6. a3 {[%clk 00:03:04]} Bd6 {[%clk 00:03:03]}
{[%emt 00:00:14]} 7. dxc5 {[%clk 00:03:04]} Bxc5 {[%clk 00:03:04]} {[%emt
00:00:05]} 8. b4 {[%clk 00:03:06]} Bd6 {[%clk 00:03:05]} 9. Bb2 {[%clk
00:03:02]} O-O {[%clk 00:03:04]} 10. cxd5 {[%clk 00:02:56]} {[%emt 00:00:47]}
exd5 {[%clk 00:03:05]} 11. Be2 {[%clk 00:02:56]} Re8 {[%clk 00:03:05]} 12. O-O
{[%clk 00:02:56]} Bg4 {[%clk 00:02:27]} 13. Rc1 {[%clk 00:02:51]} {[%emt
00:01:28]} a6 {[%clk 00:01:45]} 14. g3 {[%clk 00:02:22]} h5 {[%clk 00:01:39]}
15. Nxd5 {[%clk 00:02:10]} {[%emt 00:00:08]} Ne4 {[%clk 00:01:28]} {[%emt
00:00:13]} 16. Nc3 {[%clk 00:01:34]} {[%emt 00:00:38]} h4 {[%clk 00:00:34]}
{[%emt 00:00:55]} 17. Nxe4 {[%clk 00:01:22]} {[%emt 00:00:15]} Rxe4 {[%clk
00:00:34]} 18. Nxh4 {[%clk 00:01:15]} {[%emt 00:00:18]} Bxe2 {[%clk 00:00:32]}
19. Qxe2 {[%clk 00:01:16]} Rxh4 {[%clk 00:00:18]} {[%emt 00:00:14]} 20. gxh4
{[%clk 00:01:12]} {[%emt 00:00:05]} Qxh4 {[%clk 00:00:04]} {[%emt 00:00:33]} 21.
f4 {[%clk 00:01:10]} Qh6 {[%emt 00:00:05]} 1-0

[Event "MČR 2022 blesk"]
[Site "Turnov, Czech Republic"]
[Date "2022.09.10"]
[Round "15.3"]
[White "Neuman Zakoucka, Adela"]
[Black "Finek, Vaclav"]
[Result "0-1"]
[TimeControl "2x 3 min + 2s/move"]
[WhiteElo "1908"]
[BlackElo "2101"]

1. e4 {[%clk 00:03:02]} {[%emt 00:00:07]} c5 {[%clk 00:03:03]} 2. Nc3 {[%clk
00:03:03]} Nc6 {[%clk 00:03:04]} {[%emt 00:00:05]} 3. Bb5 {[%clk 00:03:04]} Nd4
{[%clk 00:03:04]} 4. Bc4 {[%clk 00:03:04]} e6 {[%clk 00:03:04]} {[%emt
00:00:04]} 5. d3 {[%clk 00:02:58]} {[%emt 00:00:09]} g6 {[%clk 00:02:42]}
{[%emt 00:00:20]} 6. f4 {[%clk 00:02:46]} {[%emt 00:00:14]} Bg7 {[%clk
00:02:38]} {[%emt 00:00:15]} 7. Nf3 {[%clk 00:02:47]} Ne7 {[%clk 00:02:39]} 8.
O-O {[%clk 00:02:41]} {[%emt 00:00:09]} O-O {[%clk 00:02:38]} 9. Ne2 {[%clk
00:02:41]} d5 {[%clk 00:02:33]} {[%emt 00:00:09]} 10. Bb3 {[%clk 00:02:26]}
{[%emt 00:00:12]} Nxf3+ {[%clk 00:02:33]} {[%emt 00:00:05]} 11. gxf3 {[%clk
00:02:20]} {[%emt 00:00:08]} b5 {[%clk 00:02:29]} {[%emt 00:00:05]} 12. c3
{[%clk 00:02:08]} {[%emt 00:00:20]} a5 {[%clk 00:02:14]} {[%emt 00:00:10]} 13.
Ng3 {[%clk 00:01:53]} {[%emt 00:00:16]} a4 {[%clk 00:02:09]} {[%emt 00:00:07]}
14. Bc2 {[%clk 00:01:54]} a3 {[%clk 00:02:09]} {[%emt 00:00:05]} 15. Qe1 {[%clk
00:01:49]} {[%emt 00:00:34]} b4 {[%clk 00:02:04]} 16. bxa3 {[%clk 00:01:38]}
Bxc3 {[%clk 00:01:58]} 17. Bd2 {[%clk 00:01:39]} Bxa1 {[%clk 00:01:48]} {[%emt
00:00:16]} 18. Qxa1 {[%clk 00:01:39]} Rxa3 {[%clk 00:01:39]} {[%emt 00:00:11]}
19. f5 {[%clk 00:01:10]} {[%emt 00:00:34]} dxe4 {[%clk 00:01:12]} {[%emt
00:00:24]} 20. Nxe4 {[%clk 00:00:50]} {[%emt 00:00:22]} Qd4+ {[%clk 00:01:11]}
{[%emt 00:00:05]} 21. Qxd4 {[%clk 00:00:39]} {[%emt 00:00:11]} cxd4 {[%clk
00:01:11]} {[%emt 00:00:05]} 22. f6 {[%clk 00:00:16]} {[%emt 00:00:27]} Nd5
{[%clk 00:01:08]} {[%emt 00:00:08]} 23. Bb3 {[%clk 00:00:15]} Nc3 {[%clk
00:01:08]} 24. Bh6 {[%clk 00:00:08]} {[%emt 00:00:06]} Rd8 {[%clk 00:01:08]} 25.
Nc5 {[%clk 00:00:06]} {[%emt 00:00:18]} Ra5 {[%clk 00:00:59]} {[%emt 00:00:04]}
26. Ne4 {[%clk 00:00:05]} Ba6 {[%clk 00:00:59]} 27. Re1 {[%clk 00:00:05]}
{[%emt 00:00:10]} Nd5 {[%clk 00:00:47]} {[%emt 00:00:07]} 28. Ng5 {[%clk
00:00:03]} {[%emt 00:00:05]} Bxd3 {[%clk 00:00:37]} {[%emt 00:00:11]} 29. Kf2
{[%clk 00:00:03]} {[%emt 00:00:06]} Bf5 {[%clk 00:00:37]} 30. h4 {[%clk
00:00:03]} {[%emt 00:00:05]} Nf4 {[%clk 00:00:36]} 31. Kg3 {[%clk 00:00:03]}
Nh5+ {[%clk 00:00:36]} {[%emt 00:00:05]} 32. Kf2 {[%clk 00:00:04]} Nxf6 {[%clk
00:00:37]} 33. f4 {[%clk 00:00:04]} {[%emt 00:00:05]} Ng4+ {[%clk 00:00:37]}
0-1

[Event "MČR 2022 blesk"]
[Site "Turnov, Czech Republic"]
[Date "2022.09.10"]
[Round "15.4"]
[White "Simacek, Pavel"]
[Black "Novotny, Josef"]
[Result "1-0"]
[TimeControl "2x 3 min + 2s/move"]
[WhiteElo "2365"]
[BlackElo "1900"]

1. e4 {[%clk 00:03:01]} {[%emt 00:00:06]} c6 {[%clk 00:03:03]} {[%emt
00:00:08]} 2. d4 {[%clk 00:03:01]} d5 {[%clk 00:03:04]} 3. Nc3 {[%clk
00:03:02]} dxe4 {[%clk 00:03:04]} 4. Nxe4 {[%clk 00:03:03]} Bf5 {[%clk
00:03:05]} {[%emt 00:00:13]} 5. Ng3 {[%clk 00:03:04]} Bg6 {[%clk 00:03:06]} 6.
h4 {[%clk 00:03:04]} h6 {[%clk 00:03:06]} {[%emt 00:00:05]} 7. Nh3 {[%clk
00:03:05]} Nd7 {[%clk 00:02:56]} 8. Nf4 {[%clk 00:03:05]} {[%emt 00:00:08]} Bh7
{[%clk 00:02:55]} 9. Bc4 {[%clk 00:02:58]} {[%emt 00:00:05]} e6 {[%clk
00:02:52]} {[%emt 00:00:05]} 10. Ngh5 {[%clk 00:02:52]} {[%emt 00:00:12]} Ngf6
{[%clk 00:02:44]} {[%emt 00:00:12]} 11. c3 {[%clk 00:02:45]} {[%emt 00:00:05]}
Nd5 {[%clk 00:02:38]} {[%emt 00:00:08]} 12. Bd3 {[%clk 00:01:55]} {[%emt
00:00:49]} Bxd3 {[%clk 00:02:36]} {[%emt 00:00:06]} 13. Qxd3 {[%clk 00:01:55]}
{[%emt 00:00:05]} N7f6 {[%clk 00:02:29]} {[%emt 00:00:05]} 14. Bd2 {[%clk
00:01:48]} {[%emt 00:00:07]} Nxh5 {[%clk 00:02:04]} {[%emt 00:00:28]} 15. Nxh5
{[%clk 00:01:48]} g6 {[%clk 00:02:00]} {[%emt 00:00:10]} 16. Ng3 {[%clk
00:01:49]} Qc7 {[%clk 00:01:53]} {[%emt 00:00:11]} 17. Ne4 {[%clk 00:01:42]}
{[%emt 00:00:06]} Bg7 {[%clk 00:01:46]} {[%emt 00:00:10]} 18. O-O-O {[%clk
00:01:38]} {[%emt 00:00:05]} O-O-O {[%clk 00:01:33]} {[%emt 00:00:15]} 19. Qf3
{[%clk 00:01:32]} {[%emt 00:00:08]} Qe7 {[%clk 00:01:20]} {[%emt 00:00:23]} 20.
g3 {[%clk 00:01:18]} {[%emt 00:00:09]} Nf6 {[%clk 00:01:15]} {[%emt 00:00:07]}
21. Nc5 {[%clk 00:01:11]} {[%emt 00:00:08]} Rd5 {[%clk 00:01:05]} {[%emt
00:00:12]} 22. Rhe1 {[%clk 00:01:01]} {[%emt 00:00:12]} Re8 {[%clk 00:00:44]}
{[%emt 00:00:27]} 23. Kb1 {[%clk 00:00:56]} {[%emt 00:00:09]} Rf5 {[%clk
00:00:42]} 24. Qe2 {[%clk 00:00:48]} {[%emt 00:00:09]} h5 {[%clk 00:00:37]}
{[%emt 00:00:06]} 25. Bg5 {[%clk 00:00:45]} {[%emt 00:00:05]} Qc7 {[%clk
00:00:32]} {[%emt 00:00:08]} 26. c4 {[%clk 00:00:41]} {[%emt 00:00:11]} Ng4
{[%emt 00:00:11]} 27. f3 {[%clk 00:00:32]} {[%emt 00:00:09]} Nf6 {[%clk
00:00:10]} {[%emt 00:00:12]} 28. g4 {[%clk 00:00:27]} {[%emt 00:00:06]} hxg4
{[%clk 00:00:04]} {[%emt 00:00:09]} 29. fxg4 {[%emt 00:00:28]} Rxg5 30. hxg5
Nd7 1-0

[Event "MČR 2022 blesk"]
[Site "Turnov, Czech Republic"]
[Date "2022.09.10"]
[Round "15.5"]
[White "Hosticka, Frantisek"]
[Black "Polak, Tomas"]
[Result "0-1"]
[TimeControl "2x 3 min + 2s/move"]
[WhiteElo "1987"]
[BlackElo "2475"]

1. e4 {[%clk 00:03:02]} c6 {[%clk 00:03:02]} 2. d4 {[%clk 00:03:02]} d5 {[%clk
00:03:03]} 3. exd5 {[%clk 00:02:55]} {[%emt 00:00:19]} cxd5 {[%clk 00:03:05]} 4.
Bd3 {[%clk 00:02:57]} Nc6 {[%clk 00:03:05]} 5. c3 {[%clk 00:02:58]} Nf6 {[%clk
00:03:03]} 6. h3 {[%clk 00:02:59]} {[%emt 00:00:08]} e5 {[%clk 00:03:00]} 7.
dxe5 {[%clk 00:03:00]} Nxe5 {[%clk 00:03:02]} {[%emt 00:00:04]} 8. Bb5+ {[%clk
00:03:01]} Bd7 {[%clk 00:03:02]} 9. Bxd7+ {[%clk 00:03:01]} Qxd7 {[%clk
00:03:02]} 10. Nf3 {[%clk 00:03:01]} {[%emt 00:00:04]} Bd6 {[%clk 00:02:56]}
{[%emt 00:00:12]} 11. O-O {[%clk 00:02:50]} {[%emt 00:00:07]} O-O {[%clk
00:02:57]} 12. Bf4 {[%clk 00:02:45]} {[%emt 00:00:15]} Nxf3+ {[%clk 00:02:51]}
{[%emt 00:00:09]} 13. Qxf3 {[%clk 00:02:46]} Bc5 {[%clk 00:02:45]} {[%emt
00:00:08]} 14. Nd2 {[%clk 00:02:44]} Rfe8 {[%clk 00:02:41]} {[%emt 00:00:05]}
15. Rad1 {[%clk 00:02:34]} {[%emt 00:00:10]} Qf5 {[%clk 00:02:35]} {[%emt
00:00:07]} 16. Bg3 {[%clk 00:01:59]} {[%emt 00:00:40]} Qc2 {[%clk 00:02:31]}
{[%emt 00:00:05]} 17. Nb3 {[%clk 00:01:54]} {[%emt 00:00:10]} Bb6 {[%clk
00:02:30]} 18. Rd2 {[%clk 00:01:52]} {[%emt 00:00:04]} Qe4 {[%clk 00:02:29]}
{[%emt 00:00:05]} 19. Qd1 {[%clk 00:01:43]} {[%emt 00:00:24]} h6 {[%clk
00:02:17]} 20. Nd4 {[%clk 00:01:36]} {[%emt 00:00:06]} a6 {[%clk 00:02:14]}
{[%emt 00:00:06]} 21. Re2 {[%clk 00:01:31]} {[%emt 00:00:07]} Qg6 {[%clk
00:02:14]} 22. Rfe1 {[%clk 00:01:29]} {[%emt 00:00:21]} Ne4 {[%clk 00:02:11]}
23. Bh2 {[%clk 00:01:21]} {[%emt 00:00:04]} Red8 {[%clk 00:02:09]} 24. f3
{[%clk 00:01:17]} {[%emt 00:00:10]} Ng3 {[%clk 00:02:05]} {[%emt 00:00:07]} 25.
Re3 {[%clk 00:00:59]} {[%emt 00:00:14]} Nf5 {[%clk 00:02:01]} {[%emt 00:00:14]}
26. R3e2 {[%clk 00:00:53]} Rac8 {[%clk 00:01:49]} {[%emt 00:00:15]} 27. Kh1
{[%clk 00:00:53]} {[%emt 00:00:15]} Bxd4 {[%clk 00:01:44]} 28. cxd4 {[%clk
00:00:52]} Kh7 {[%clk 00:01:43]} {[%emt 00:00:04]} 29. Re5 {[%clk 00:00:36]}
{[%emt 00:00:19]} Rc2 {[%clk 00:01:33]} {[%emt 00:00:10]} 30. Qb1 {[%clk
00:00:31]} {[%emt 00:00:05]} Qxg2# {[%emt 00:00:07]} 31. R5e2 {[%emt 00:00:11]}
Qg6 32. Qd1 0-1

[Event "MČR 2022 blesk"]
[Site "Turnov, Czech Republic"]
[Date "2022.09.10"]
[Round "15.6"]
[White "Roubalik, Jakub"]
[Black "Vokoun, Jan"]
[Result "1-0"]
[TimeControl "2x 3 min + 2s/move"]
[WhiteElo "2276"]
[BlackElo "1990"]

1. e4 {[%clk 00:03:03]} c5 {[%clk 00:03:04]} 2. Nf3 {[%clk 00:03:04]} Nc6
{[%clk 00:03:05]} 3. Bb5 {[%clk 00:03:05]} e6 {[%clk 00:03:06]} {[%emt
00:00:56]} 4. Bxc6 {[%clk 00:03:05]} bxc6 {[%clk 00:03:07]} 5. O-O {[%clk
00:03:05]} Ne7 {[%clk 00:03:07]} 6. d3 {[%clk 00:03:05]} Ng6 {[%clk 00:03:07]}
{[%emt 00:00:04]} 7. Nc3 {[%clk 00:03:05]} e5 {[%clk 00:03:00]} 8. Be3 {[%clk
00:03:00]} d6 {[%clk 00:03:00]} 9. Ne2 {[%clk 00:02:57]} Bg4 {[%clk 00:02:46]}
{[%emt 00:00:04]} 10. Nd2 {[%clk 00:02:49]} Be7 {[%clk 00:02:38]} 11. h3 {[%clk
00:02:50]} Be6 {[%clk 00:02:37]} 12. f4 {[%clk 00:02:50]} exf4 {[%clk
00:02:34]} 13. Nxf4 {[%clk 00:02:51]} {[%emt 00:01:19]} Nxf4 {[%clk 00:02:33]}
14. Bxf4 {[%clk 00:02:50]} O-O {[%clk 00:02:26]} 15. b3 {[%clk 00:02:50]} Bf6
{[%clk 00:02:19]} 16. Rb1 {[%clk 00:02:51]} d5 {[%clk 00:02:15]} 17. Kh1 {[%clk
00:02:40]} a5 {[%clk 00:02:11]} 18. Qf3 {[%clk 00:02:33]} a4 {[%clk 00:02:02]}
{[%emt 00:01:02]} 19. e5 {[%clk 00:02:32]} Be7 {[%clk 00:02:00]} 20. Qg3 {[%clk
00:02:32]} {[%emt 00:00:09]} Kh8 {[%clk 00:01:59]} 21. Nf3 {[%clk 00:02:26]}
axb3 {[%clk 00:01:55]} 22. axb3 {[%clk 00:02:27]} Ra2 {[%clk 00:01:53]} 23. Qf2
{[%clk 00:02:17]} {[%emt 00:00:05]} Qa5 {[%clk 00:01:27]} 24. Rfc1 {[%clk
00:01:45]} Ra8 {[%clk 00:01:16]} 25. Bg5 {[%clk 00:01:42]} Bf8 {[%clk
00:01:12]} 26. Bd2 {[%clk 00:01:43]} {[%emt 00:00:09]} Qc7 {[%clk 00:01:12]} 27.
Qg3 {[%clk 00:01:35]} Bf5 {[%clk 00:01:06]} 28. Nh4 {[%clk 00:01:12]} Be6
{[%clk 00:01:05]} 29. Nf3 {[%clk 00:01:13]} {[%emt 00:00:58]} Qd7 {[%clk
00:01:01]} {[%emt 00:00:54]} 30. Qh4 {[%clk 00:00:34]} Bf5 {[%clk 00:01:00]}
{[%emt 00:00:05]} 31. g4 {[%clk 00:00:34]} Bg6 {[%clk 00:01:00]} 32. Qg3 {[%clk
00:00:33]} c4 {[%clk 00:01:00]} 33. bxc4 {[%clk 00:00:28]} dxc4 {[%clk
00:01:00]} {[%emt 00:00:05]} 34. Nh4 {[%clk 00:00:05]} Qd5+ {[%clk 00:00:58]}
35. Kh2 {[%clk 00:00:04]} cxd3 {[%clk 00:00:54]} 36. Nxg6+ {[%clk 00:00:05]}
hxg6 {[%clk 00:00:52]} {[%emt 00:00:05]} 37. Bc3 Qg2+ 38. Kxg2 {[%clk
00:03:02]} 1-0

[Event "MČR 2022 blesk"]
[Site "Turnov, Czech Republic"]
[Date "2022.09.10"]
[Round "15.7"]
[White "Mrkos, Miroslav"]
[Black "Nemec, Jachym"]
[Result "0-1"]
[TimeControl "2x 3 min + 2s/move"]
[WhiteElo "2070"]
[BlackElo "2130"]

1. d4 {[%clk 00:03:03]} Nf6 {[%clk 00:03:03]} {[%emt 00:00:06]} 2. Bg5 {[%clk
00:03:04]} c5 {[%clk 00:03:02]} {[%emt 00:00:05]} 3. d5 {[%clk 00:03:03]} g6
{[%clk 00:03:02]} {[%emt 00:00:05]} 4. g3 {[%clk 00:02:57]} {[%emt 00:00:22]}
Bg7 {[%clk 00:03:03]} 5. Bg2 {[%clk 00:02:59]} d6 {[%clk 00:03:04]} 6. Nf3
{[%clk 00:02:58]} h6 {[%clk 00:02:57]} {[%emt 00:00:08]} 7. Bc1 {[%clk
00:02:57]} O-O {[%clk 00:02:57]} 8. O-O {[%clk 00:02:57]} {[%emt 00:00:05]} b5
{[%clk 00:02:58]} 9. a4 {[%clk 00:02:57]} Bb7 {[%clk 00:02:57]} 10. axb5 {[%clk
00:02:49]} {[%emt 00:00:10]} Bxd5 {[%clk 00:02:57]} 11. c4 {[%clk 00:02:33]}
{[%emt 00:00:15]} Bb7 {[%clk 00:02:56]} {[%emt 00:00:06]} 12. Nc3 {[%clk
00:02:32]} {[%emt 00:00:10]} Nbd7 {[%clk 00:02:57]} 13. Nd2 {[%clk 00:02:07]}
{[%emt 00:00:21]} Bxg2 {[%clk 00:02:57]} 14. Kxg2 {[%clk 00:02:08]} {[%emt
00:00:13]} Qc7 {[%clk 00:02:58]} 15. Qc2 {[%clk 00:02:02]} e6 {[%clk 00:02:57]}
{[%emt 00:00:08]} 16. Rd1 {[%clk 00:01:52]} {[%emt 00:00:04]} d5 {[%clk
00:02:53]} {[%emt 00:00:05]} 17. b3 {[%clk 00:01:48]} {[%emt 00:00:06]} d4
{[%clk 00:02:51]} {[%emt 00:00:05]} 18. Nce4 {[%clk 00:01:43]} {[%emt
00:00:06]} Nxe4 {[%clk 00:02:44]} {[%emt 00:00:17]} 19. Nxe4 {[%clk 00:01:36]}
{[%emt 00:00:05]} f5 {[%clk 00:02:36]} {[%emt 00:00:15]} 20. Nd2 {[%clk
00:00:56]} {[%emt 00:00:34]} d3 {[%clk 00:02:36]} 21. Qb1 {[%clk 00:00:48]}
{[%emt 00:00:10]} dxe2 {[%clk 00:02:36]} {[%emt 00:00:07]} 22. Re1 {[%clk
00:00:50]} Qb7+ {[%clk 00:02:20]} {[%emt 00:00:15]} 23. Kg1 {[%clk 00:00:50]}
{[%emt 00:00:09]} Bxa1 {[%emt 00:00:13]} 24. Qxa1 Kh7 {[%clk 00:02:12]} 25.
Rxe2 {[%clk 00:00:49]} {[%emt 00:00:05]} e5 {[%clk 00:02:09]} {[%emt 00:00:05]}
26. Nf1 {[%clk 00:00:40]} {[%emt 00:00:04]} Rfe8 {[%clk 00:01:48]} {[%emt
00:00:21]} 27. h4 {[%clk 00:00:35]} {[%emt 00:00:08]} a6 {[%clk 00:01:31]}
{[%emt 00:00:18]} 28. bxa6 {[%clk 00:00:32]} {[%emt 00:00:13]} Rxa6 {[%clk
00:01:32]} 29. Qc3 {[%clk 00:00:33]} Rb6 {[%clk 00:01:26]} {[%emt 00:00:04]} 30.
Qd2 {[%clk 00:00:10]} {[%emt 00:00:31]} f4 {[%clk 00:01:10]} {[%emt 00:00:10]}
31. h5 {[%clk 00:00:09]} {[%emt 00:00:04]} Nf8 {[%clk 00:01:07]} {[%emt
00:00:10]} 32. gxf4 {[%clk 00:00:07]} e4 {[%clk 00:01:07]} {[%emt 00:00:04]} 33.
hxg6+ {[%clk 00:00:06]} {[%emt 00:00:13]} Rxg6+ {[%clk 00:01:07]} 34. Ng3
{[%clk 00:00:06]} Qd7 {[%clk 00:00:43]} {[%emt 00:00:19]} 35. Qe3 {[%clk
00:00:04]} {[%emt 00:00:05]} Qg7 {[%clk 00:00:34]} {[%emt 00:00:12]} 36. f5
{[%clk 00:00:04]} Rg4 {[%clk 00:00:35]} 37. Bb2 {[%clk 00:00:03]} {[%emt
00:00:12]} Qg5 {[%clk 00:00:31]} 38. Qc3 {[%clk 00:00:03]} Nd7 {[%clk
00:00:30]} 39. Kg2 {[%clk 00:00:04]} {[%emt 00:00:11]} h5 {[%clk 00:00:31]} 40.
Bc1 {[%clk 00:00:03]} Qg8 {[%clk 00:00:31]} {[%emt 00:00:05]} 41. Qd2 {[%clk
00:00:04]} Qg7 {[%clk 00:00:28]} 42. Qd6 {[%emt 00:00:09]} 0-1

[Event "MČR 2022 blesk"]
[Site "Turnov, Czech Republic"]
[Date "2022.09.10"]
[Round "15.8"]
[White "Pisk, Petr"]
[Black "Krouzel, Jaroslav"]
[Result "1/2-1/2"]
[TimeControl "2x 3 min + 2s/move"]
[WhiteElo "2312"]
[BlackElo "1953"]

1. e4 {[%clk 00:03:03]} e5 {[%clk 00:03:02]} {[%emt 00:00:05]} 2. Nf3 {[%clk
00:03:03]} Nc6 {[%clk 00:03:03]} 3. d4 {[%clk 00:03:04]} exd4 {[%clk 00:03:03]}
4. c3 {[%clk 00:03:05]} d5 {[%clk 00:02:48]} {[%emt 00:00:05]} 5. exd5 {[%clk
00:03:05]} Qxd5 {[%clk 00:02:49]} 6. cxd4 {[%clk 00:03:04]} Bg4 {[%clk
00:02:49]} 7. Be2 {[%clk 00:03:04]} Bb4+ {[%clk 00:02:49]} {[%emt 00:00:05]} 8.
Nc3 {[%clk 00:03:04]} Nf6 {[%clk 00:02:30]} 9. O-O {[%clk 00:03:04]} Bxc3
{[%clk 00:02:31]} 10. bxc3 {[%clk 00:03:05]} {[%emt 00:00:10]} O-O {[%clk
00:02:31]} 11. c4 {[%clk 00:03:00]} Qh5 {[%clk 00:02:31]} 12. Bb2 {[%clk
00:02:54]} Ne7 {[%clk 00:02:00]} 13. Re1 {[%clk 00:02:38]} {[%emt 00:00:56]}
Ng6 {[%clk 00:01:50]} {[%emt 00:00:09]} 14. Ne5 {[%clk 00:02:23]} Bxe2 {[%clk
00:01:35]} 15. Qxe2 {[%clk 00:02:20]} Qxe2 {[%clk 00:01:34]} 16. Rxe2 {[%clk
00:02:19]} {[%emt 00:00:08]} Nf4 {[%clk 00:01:26]} 17. Re3 {[%clk 00:02:10]} c6
{[%clk 00:01:27]} 18. g3 {[%clk 00:02:07]} Ne6 {[%clk 00:01:26]} 19. Rd1 {[%clk
00:02:03]} {[%emt 00:00:05]} Rad8 {[%clk 00:01:22]} 20. Rb3 {[%clk 00:01:58]}
Nc5 {[%clk 00:01:04]} 21. Re3 {[%clk 00:01:45]} Rfe8 {[%clk 00:01:01]} 22. Rde1
{[%clk 00:01:43]} {[%emt 00:00:04]} Na4 {[%clk 00:00:52]} 23. Ba1 {[%clk
00:01:42]} Nb6 {[%clk 00:00:49]} 24. f4 {[%clk 00:01:39]} g6 {[%clk 00:00:42]}
{[%emt 00:00:05]} 25. Kg2 {[%clk 00:01:33]} Kg7 {[%clk 00:00:38]} 26. Ng4
{[%clk 00:01:24]} Rxe3 {[%clk 00:00:23]} 27. Nxe3 {[%clk 00:01:25]} Kf8 {[%clk
00:00:20]} 28. d5 {[%clk 00:01:19]} {[%emt 00:01:03]} Ne4 {[%clk 00:00:20]} 29.
dxc6 {[%clk 00:01:15]} bxc6 {[%clk 00:00:22]} 30. Re2 {[%clk 00:01:12]} f5
{[%clk 00:00:23]} {[%emt 00:00:04]} 31. Be5 {[%clk 00:01:11]} Rd3 {[%clk
00:00:23]} 32. g4 {[%clk 00:01:05]} fxg4 {[%clk 00:00:20]} 33. Nxg4 {[%clk
00:01:06]} Nd2 {[%clk 00:00:21]} {[%emt 00:00:05]} 34. Nf6 {[%clk 00:01:01]}
Ndxc4 {[%clk 00:00:20]} 35. Nxh7+ {[%clk 00:01:00]} Kg8 {[%clk 00:00:21]} 36.
Nf6+ {[%clk 00:01:01]} Kf7 {[%clk 00:00:22]} 37. Ba1 {[%clk 00:01:01]} {[%emt
00:00:56]} Rd1 {[%clk 00:00:23]} 38. Be5 {[%clk 00:00:59]} {[%emt 00:00:05]}
Nxe5 {[%clk 00:00:23]} 39. fxe5 {[%clk 00:01:00]} Ke6 {[%clk 00:00:24]} 40. Nh7
{[%clk 00:00:56]} Nd5 {[%clk 00:00:23]} 41. Nf8+ {[%clk 00:00:50]} {[%emt
00:00:04]} Kf7 {[%clk 00:00:24]} 42. Nd7 {[%clk 00:00:51]} Nf4+ {[%clk
00:00:25]} 1/2-1/2